bitfinex/quotes_ETHUSD_20260130
["timestamp","ask_amount","ask_price","bid_price","bid_amount"]
[1769794809790,0.001,2720.5,2719.3,0.91935424]
[1769794810391,12.70416038,2720.5,2718.7,1.29923049]
[1769794810626,12.70416038,2720.5,2719.2,0.91937933]
[1769794810994,12.70416038,2720.5,2719.1,0.91941264]
[1769794811195,12.70416038,2720.5,2719.1,0.9194218]
[1769794811693,0.91905006,2720.2,2718.5,0.91962479]
[1769794813810,0.91905006,2720.2,2718.5,13.80952967]
[1769794814030,0.92003918,2720.3,2718.7,12.88990488]
[1769794814217,0.001,2720.3,2718.7,12.88990488]
[1769794814707,0.001,2720.3,2718.6,1.74880288]
[1769794814708,13.6231795,2720.3,2718.6,1.74880288]
[1769794814936,13.6231795,2720.3,2718.5,0.91962479]
[1769794815747,13.6231795,2720.3,2718.5,13.80952967]
[1769794816253,0.001,2720.3,2718.5,14.76615514]
[1769794816451,0.001,2720.3,2718.7,12.88990488]
[1769794816610,0.001,2720.3,2718.6,0.95662547]
[1769794816611,0.001,2720.3,2718.9,12.88990488]
[1769794817044,0.92003327,2720.3,2718.9,12.88990488]
[1769794817347,0.92003327,2720.3,2718.8,1.38465304]
[1769794817521,0.92003327,2720.3,2718.5,13.80952967]
[1769794818266,12.70416038,2720.3,2718.5,13.80952967]
[1769794818828,0.001,2720.3,2718.5,13.80952967]
[1769794819152,0.001,2720.3,2718.5,14.76615514]
[1769794819339,0.001,2720.3,2718.5,13.80952967]
[1769794819656,0.001,2720.3,2718.9,12.88990488]
[1769794820435,0.001,2720.3,2719.1,12.88990488]
[1769794821366,0.001,2720.3,2719.0,0.91945568]
[1769794821953,0.001,2720.3,2719.0,13.80936056]
[1769794822440,0.001,2720.3,2719.2,12.88990488]
[1769794822637,0.001,2720.3,2719.3,1.29923049]
[1769794822955,0.001,2720.5,2719.3,14.18913537]
[1769794823967,0.001,2720.1,2719.3,14.18913537]
[1769794824351,0.001,2720.1,2719.4,0.91932043]
[1769794829480,12.70416038,2720.1,2719.3,1.29923049]
[1769794829680,13.97357642,2720.0,2719.1,0.91940256]
[1769794829991,13.97357642,2720.0,2718.8,3.67807494]
[1769794830176,13.97357642,2720.0,2718.0,10.13]
[1769794830358,13.97357642,2720.0,2718.7,0.91953266]
[1769794830558,13.97357642,2720.0,2718.1,12.88990488]
[1769794830755,0.001,2720.1,2718.3,12.88990488]
[1769794830991,0.001,2720.1,2718.6,0.1024]
[1769794831193,0.001,2720.1,2718.8,0.1024]
[1769794831404,0.001,2720.1,2718.9,12.88990488]
[1769794832502,0.001,2720.5,2719.1,12.88990488]
[1769794832660,0.001,2720.5,2719.3,12.88990488]
[1769794833093,12.70416038,2720.5,2719.2,2.20837854]
[1769794833596,0.001,2720.5,2719.2,2.20837854]
[1769794834111,0.001,2720.5,2719.2,15.09828342]
[1769794836969,13.74730247,2721.7,2719.5,13.39736672]
[1769794837182,14.11471081,2721.7,2719.7,13.39736672]
[1769794837604,14.11471081,2721.7,2719.9,13.39736672]
[1769794837901,13.19616726,2721.7,2719.9,13.39736672]
[1769794838474,13.19616726,2721.7,2720.0,0.1024]
[1769794838670,13.74718958,2722.1,2720.1,14.74734339]
[1769794838874,13.74718958,2722.1,2720.2,0.91905006]
[1769794839904,13.74718958,2722.1,2720.2,14.31641678]
[1769794840209,13.74718958,2722.1,2720.2,0.91905006]
[1769794841801,12.82875892,2721.9,2720.1,1.34997667]
[1769794842119,12.82875892,2721.7,2720.0,0.91909341]
[1769794842273,12.82875892,2721.7,2720.1,0.91908197]
[1769794843329,12.82875892,2721.5,2719.4,1.02172043]
[1769794844594,12.82875892,2721.5,2719.4,0.91932043]
[1769794844795,12.82875892,2721.1,2719.4,0.91932043]
[1769794845541,12.82875892,2720.9,2719.4,0.91932043]
[1769794846933,0.91877986,2721.0,2719.4,14.31668715]
[1769794847432,13.74747125,2721.2,2719.4,14.31868715]
[1769794847637,13.74747125,2721.2,2719.4,0.92132043]
[1769794847843,12.82875892,2721.0,2719.5,0.52736965]
[1769794848707,12.82875892,2721.0,2719.4,0.92132043]
[1769794849315,12.82875892,2720.8,2719.4,0.002]
[1769794850319,12.82875892,2720.6,2719.1,0.002]
[1769794850528,12.82875892,2720.4,2718.9,0.002]
[1769794850826,12.82875892,2720.3,2718.9,0.002]
[1769794851032,12.82875892,2720.1,2718.9,0.002]
[1769794851540,13.74787656,2720.0,2718.9,0.002]
[1769794859918,0.91911764,2720.0,2719.1,0.002]
[1769794860934,13.74787656,2720.0,2719.1,0.002]
[1769794862443,12.82875892,2719.6,2718.1,0.002]
[1769794862739,1.15268794,2720.0,2718.1,0.002]
[1769794862740,12.82875892,2719.4,2718.1,0.9217591]
[1769794863538,12.82875892,2719.4,2718.1,0.002]
[1769794863836,12.82875892,2719.4,2718.1,0.92175649]
[1769794864243,12.82875892,2719.2,2718.1,0.002]
[1769794866213,13.7481596,2719.2,2718.1,0.002]
[1769794866412,2.29421664,2719.2,2718.1,0.002]
[1769794869018,14.98258439,2719.2,2718.1,0.002]
[1769794871442,14.98258439,2719.2,2717.9,0.002]
[1769794871655,14.98258439,2719.2,2718.3,0.002]
[1769794871852,12.68836775,2718.9,2718.3,0.002]
[1769794872053,12.68836775,2718.7,2718.3,0.002]
[1769794872258,12.68836775,2718.7,2717.8,0.002]
[1769794872456,12.68836775,2718.5,2717.8,0.002]
[1769794873040,12.68836775,2718.5,2717.6,0.002]
[1769794873245,12.68836775,2718.5,2717.4,0.002]
[1769794873570,12.68836775,2718.3,2717.4,0.002]
[1769794874553,0.91972628,2718.2,2717.4,0.002]
[1769794874760,13.60809403,2718.2,2717.4,0.002]
[1769794875143,5.03970102,2718.4,2717.4,0.002]
[1769794875144,2.28047021,2718.4,2717.4,0.002]
[1769794875349,3.67818279,2718.8,2717.4,0.002]
[1769794875350,12.68836775,2718.6,2717.4,0.002]
[1769794876895,0.91962479,2718.5,2717.4,0.002]
[1769794877374,0.9196084,2718.6,2717.4,12.90625717]
[1769794877573,12.68936775,2719.0,2717.4,12.90625717]
[1769794877574,0.92046326,2719.0,2717.4,12.90625717]
[1769794877750,0.92046326,2719.0,2717.5,1.29062572]
[1769794877952,0.001,2719.0,2717.5,14.19488289]
[1769794878880,0.001,2719.0,2717.6,13.82418651]
[1769794879060,0.001,2719.0,2717.8,12.90425717]
[1769794879377,0.91923969,2719.7,2717.7,13.00665717]
[1769794879582,0.4596085,2719.6,2717.9,12.90425717]
[1769794879964,13.14797625,2719.6,2717.9,12.90425717]
[1769794880764,13.60765438,2719.5,2718.0,0.91979396]
[1769794882850,13.60765438,2719.5,2717.9,3.67917586]
[1769794884175,12.68836775,2719.3,2718.1,0.002]
[1769794884371,12.68836775,2719.1,2718.1,0.002]
[1769794884772,0.91945568,2719.0,2718.1,0.002]
[1769794885284,0.91945568,2719.0,2717.9,3.68117586]
[1769794888102,0.91944585,2719.1,2717.9,16.58543303]
[1769794888309,0.001,2719.4,2718.0,12.90425717]
[1769794888609,0.001,2719.4,2718.0,13.84195589]
[1769794888810,0.001,2719.4,2718.2,12.90425717]
[1769794889313,0.001,2720.2,2718.2,12.90425717]
[1769794889314,0.001,2720.2,2718.4,12.90425717]
[1769794889876,0.001,2720.2,2718.8,12.90425717]
[1769794890183,0.91877986,2721.0,2719.1,12.90425717]
[1769794890385,16.3633933,2721.1,2719.1,12.90425717]
[1769794890386,13.60712574,2721.1,2719.1,12.90425717]
[1769794891408,13.60712574,2721.1,2719.2,0.91938805]
[1769794892106,0.91875799,2721.1,2719.2,13.82364522]
[1769794892406,0.91864481,2721.4,2719.6,12.90425717]
[1769794892704,16.36385031,2721.5,2719.7,14.20492289]
[1769794892705,1.72824951,2721.3,2719.7,14.20492289]
[1769794892875,0.91962432,2721.5,2719.7,14.20492289]
[1769794893070,13.60799207,2721.5,2719.7,14.20492289]
[1769794893289,13.60799207,2721.5,2719.7,1.30066572]
[1769794893607,13.60704632,2721.3,2719.5,12.90425717]
[1769794893807,0.91867857,2721.3,2719.5,12.90425717]
[1769794894421,13.60704632,2721.3,2719.5,12.90425717]
[1769794894590,0.91963339,2721.5,2719.7,12.90425717]
[1769794894791,0.45940611,2721.4,2719.8,14.19468289]
[1769794895018,13.14777386,2721.4,2719.8,1.29042572]
[1769794895186,13.14777386,2721.4,2719.5,13.00665717]
[1769794895387,13.14777386,2721.4,2719.6,0.91925283]
[1769794895388,0.91867857,2721.3,2719.6,0.91925283]
[1769794895622,14.06643336,2721.4,2719.6,13.82351]
[1769794896426,13.14777386,2721.4,2719.6,13.82351]
[1769794896730,0.001,2721.5,2719.8,12.70853976]
[1769794897224,0.91961468,2721.5,2719.8,12.70853976]
[1769794897424,0.001,2721.5,2719.9,14.61199]
[1769794898159,0.001,2721.5,2719.9,0.91915143]
[1769794898160,13.4639979,2721.5,2719.9,0.91915143]
[1769794898745,13.4639979,2721.5,2719.9,14.61199]
[1769794898933,13.4639979,2721.5,2720.0,1.82885957]
[1769794898934,1.34639979,2721.4,2720.0,1.82885957]
[1769794899134,14.80939769,2721.4,2720.0,1.82885957]
[1769794899329,14.80939769,2721.4,2719.9,0.91915143]
[1769794899533,14.80939769,2721.4,2719.6,3.67698094]
[1769794899534,13.4629979,2721.2,2719.6,3.67698094]
[1769794899734,13.4629979,2721.2,2718.9,1.29042572]
[1769794900043,13.4629979,2721.0,2719.3,0.91933399]
[1769794900347,13.4629979,2721.0,2719.5,0.91928253]
[1769794900524,13.4629979,2720.8,2719.5,0.91928253]
[1769794900920,1.34629979,2720.9,2719.5,0.91928253]
[1769794901130,13.4629979,2721.2,2719.5,0.91928253]
[1769794901332,5.02111408,2721.4,2719.5,14.6121211]
[1769794901333,2.26506967,2721.4,2719.5,14.6121211]
[1769794901639,15.72806757,2721.4,2719.5,14.6121211]
[1769794901958,13.4629979,2721.2,2719.5,0.91928253]
[1769794902108,13.4629979,2721.2,2719.5,0.91928177]
[1769794902310,13.4629979,2721.0,2719.5,0.91928177]
[1769794903719,0.91881362,2720.9,2719.5,0.91928177]
[1769794903924,14.38181152,2720.9,2719.5,0.91928177]
[1769794905329,14.38181152,2720.9,2719.4,0.9192967]
[1769794905729,14.38181152,2720.9,2719.1,0.91942186]
[1769794905962,13.4629979,2720.7,2719.2,1.82900344]
[1769794906655,13.4629979,2720.7,2719.1,0.91942186]
[1769794907431,13.4629979,2720.7,2719.1,14.61226043]
[1769794907757,0.91880108,2721.0,2719.1,14.61226043]
[1769794908930,0.91880108,2721.0,2719.3,0.002]
[1769794909130,2.72448106,2721.0,2719.4,13.69283857]
[1769794910059,16.18747896,2721.0,2719.3,0.002]
[1769794910259,16.18747896,2721.0,2719.4,0.91931818]
[1769794910853,16.18747896,2721.0,2719.4,14.61215675]
[1769794911147,16.18747896,2721.0,2719.5,1.82914489]
[1769794911960,16.18747896,2721.0,2719.6,0.91925283]
[1769794912139,2.72448106,2721.0,2719.6,0.91925283]
[1769794912345,0.91880108,2721.0,2719.6,14.6120914]
[1769794912865,0.91876863,2721.1,2719.6,14.6120914]
[1769794913360,14.38176653,2721.1,2719.6,0.91925283]
[1769794913570,13.4629979,2721.0,2719.3,0.002]
[1769794913769,15.96326717,2721.0,2719.3,0.002]
[1769794914140,13.6965682,2720.8,2719.3,0.002]
[1769794914443,13.6965682,2720.8,2719.0,0.002]
[1769794915458,13.4629979,2720.4,2719.0,0.002]
[1769794915645,13.4629979,2720.2,2719.0,0.002]
[1769794916049,0.91908385,2720.1,2719.0,0.002]
[1769794916338,13.4629979,2720.0,2719.0,0.002]
[1769794917161,13.4629979,2720.0,2718.1,3.68099429]
[1769794918181,13.4629979,2720.0,2718.3,0.91969245]
[1769794918182,0.91915143,2719.9,2718.3,0.91969245]
[1769794918383,1.80587551,2719.8,2718.4,1.82913008]
[1769794919082,13.4629979,2720.4,2718.4,15.52196865]
[1769794919292,0.91901628,2720.3,2718.4,15.52196865]
[1769794920156,0.91901628,2720.3,2718.6,13.69283857]
[1769794921194,14.38201418,2720.3,2718.6,13.69283857]
[1769794921382,14.38201418,2720.3,2718.6,13.69483857]
[1769794921587,13.4629979,2720.1,2718.6,0.002]
[1769794921764,13.4629979,2719.9,2718.6,0.002]
[1769794922262,13.4629979,2719.7,2718.6,0.002]
[1769794924186,0.91925283,2719.6,2718.6,0.002]
[1769794924389,14.38225073,2719.6,2718.6,0.002]
[1769794924574,1.80592621,2719.5,2718.6,0.002]
[1769794924767,14.38225073,2719.6,2718.6,0.002]
[1769794924971,13.4629979,2719.4,2718.1,0.002]
[1769794926406,13.4629979,2719.2,2718.1,0.002]
[1769794927202,13.4629979,2719.2,2717.9,0.002]
[1769794928478,13.25327027,2719.0,2717.9,0.002]
[1769794928676,14.67053948,2718.9,2717.9,0.002]
[1769794929504,14.67053948,2718.9,2717.4,0.002]
[1769794933635,0.91952331,2718.8,2717.6,0.002]
[1769794933931,13.25327027,2718.7,2717.6,0.002]
[1769794935723,13.25327027,2718.5,2717.6,0.002]
[1769794935932,13.25327027,2718.3,2717.4,0.002]
[1769794937766,13.25327027,2718.1,2717.0,0.002]
[1769794939813,13.25327027,2717.9,2717.0,0.002]
[1769794941844,0.91986165,2717.8,2717.0,0.002]
[1769794942617,0.91962479,2718.5,2717.0,13.78228471]
[1769794942834,0.91962479,2718.5,2717.2,13.78028471]
[1769794944040,0.91955714,2718.7,2717.3,0.92003091]
[1769794946235,0.001,2718.5,2717.3,0.92003091]
[1769794948024,0.001,2718.5,2717.3,14.70031562]
[1769794948220,0.001,2718.5,2717.5,14.70024791]
[1769794948957,0.91948022,2719.0,2717.6,13.78028471]
[1769794949257,3.67859179,2719.2,2717.6,13.78028471]
[1769794949258,0.91945321,2719.1,2717.6,13.78028471]
[1769794949620,14.17272348,2719.1,2717.5,0.9199632]
[1769794950864,14.17272348,2719.1,2717.5,14.70024791]
[1769794951034,13.25327027,2718.9,2717.6,1.83801007]
[1769794951561,13.25327027,2718.9,2717.5,0.9199632]
[1769794952357,0.91952331,2718.8,2717.5,13.78028471]
[1769794952719,14.17279358,2718.8,2717.3,3.6798528]
[1769794952925,13.25327027,2719.1,2717.4,13.78028471]
[1769794953124,0.91943784,2719.1,2717.4,13.78028471]
[1769794953367,0.001,2719.2,2717.6,13.78028471]
[1769794953668,0.001,2719.2,2717.8,13.78028471]
[1769794953971,13.25327027,2720.0,2718.0,13.78028471]
[1769794953972,0.91913257,2720.0,2718.0,13.78028471]
[1769794954137,13.25327027,2720.4,2718.2,13.78028471]
[1769794954344,0.9189765,2720.5,2718.4,13.78028471]
[1769794954572,16.92872493,2720.8,2718.6,13.78028471]
[1769794954759,14.17215144,2720.7,2718.6,13.78028471]
[1769794956204,14.17301636,2721.2,2719.0,13.78028471]
[1769794956347,3.67509976,2721.1,2719.0,13.78028471]
[1769794956670,3.67509976,2721.1,2719.2,13.68780351]
[1769794956671,14.48439581,2721.0,2719.2,13.68780351]
[1769794956875,14.48439581,2721.0,2719.1,1.37822847]
[1769794957179,14.48439581,2721.0,2718.9,0.91948949]
[1769794957746,14.48439581,2721.0,2718.9,14.11612585]
[1769794958151,0.001,2720.5,2718.9,14.11612585]
[1769794960287,0.001,2720.5,2718.8,3.67795799]
[1769794960288,14.65410355,2720.4,2718.7,3.67795799]
[1769794960855,14.65410355,2720.4,2718.7,16.87459435]
[1769794961176,1.83310336,2720.3,2718.8,1.77941853]
[1769794961381,1.83310336,2720.3,2718.8,14.97605489]
[1769794962085,15.56822441,2720.3,2718.8,14.97605489]
[1769794962478,14.65417111,2720.2,2718.9,0.91948949]
[1769794963867,0.91905006,2720.2,2718.9,14.11612585]
[1769794964090,0.64283537,2720.1,2718.9,16.26334203]
[1769794964673,0.91996978,2720.5,2719.0,13.19663636]
[1769794966890,0.001,2720.5,2719.1,0.91942186]
[1769794967703,0.001,2720.5,2719.1,14.11605822]
[1769794970997,0.91994872,2720.5,2719.1,14.11605822]
[1769794971190,1.83308647,2720.4,2719.2,1.61986141]
[1769794971569,15.56820752,2720.4,2719.2,1.61986141]
[1769794971768,15.56820752,2720.4,2719.1,0.91942186]
[1769794972505,15.56820752,2720.4,2719.0,0.9194379]
[1769794972686,15.56820752,2720.4,2718.8,3.68005399]
[1769794972687,15.56820752,2720.4,2718.8,0.002]
[1769794973073,0.91901628,2720.3,2718.8,13.19863636]
[1769794974778,1.83308647,2720.4,2718.8,13.19863636]
[1769794974984,0.9199678,2720.5,2719.1,13.19663636]
[1769794975289,0.001,2720.5,2719.1,13.19663636]
[1769794975488,0.001,2720.5,2719.5,13.19663636]
[1769794975686,0.91973292,2721.2,2719.5,13.19663636]
[1769794975879,0.45944564,2721.1,2719.6,1.32990364]
[1769794976091,14.19456669,2721.1,2719.6,1.32990364]
[1769794976977,15.11331952,2721.1,2719.7,0.91921903]
[1769794977176,0.001,2721.2,2719.7,14.11585539]
[1769794977505,0.001,2721.2,2719.9,13.19663636]
[1769794978104,14.65485519,2721.2,2719.7,0.91921903]
[1769794980788,14.65485519,2721.2,2719.6,5.00677976]
[1769794980789,14.65485519,2721.2,2719.6,0.91925231]
[1769794981208,14.65485519,2721.2,2719.2,3.67752097]
[1769794981513,13.73512105,2721.0,2719.3,1.78959454]
[1769794982914,13.73512105,2721.0,2719.3,0.002]
[1769794983212,13.73512105,2720.4,2719.0,0.91945568]
[1769794983619,13.73512105,2720.4,2719.0,0.92145568]
[1769794984989,13.73512105,2720.4,2719.0,0.002]
[1769794985191,13.73512105,2720.2,2719.0,0.002]
[1769794985418,13.73512105,2720.0,2719.0,0.002]
[1769794987525,0.91915143,2719.9,2719.0,0.002]
[1769794987726,13.19964626,2720.4,2719.0,0.002]
[1769794987928,3.67623581,2721.0,2719.0,13.90597117]
[1769794987929,13.19964626,2720.7,2719.0,13.90597117]
[1769794988096,14.51961089,2720.6,2719.1,1.39059712]
[1769794988299,14.51961089,2720.6,2719.0,0.002]
[1769794989227,13.19964626,2720.2,2719.0,0.002]
[1769794989428,13.19964626,2720.0,2718.8,0.002]
[1769794990693,13.19964626,2720.0,2718.5,0.002]
[1769794990694,13.19964626,2719.6,2718.5,0.002]
[1769794991114,13.19964626,2719.4,2717.5,0.002]
[1769794991317,13.19964626,2719.2,2717.8,0.91985971]
[1769794991527,13.19964626,2719.0,2717.7,3.6795476]
[1769794992099,13.19964626,2719.0,2717.6,0.91990809]
[1769794992536,13.19964626,2718.8,2717.5,0.002]
[1769794993441,13.19964626,2718.6,2717.5,0.002]
[1769794993637,13.19964626,2718.6,2717.2,0.002]
[1769794993926,13.19964626,2718.4,2717.2,0.002]
[1769794994928,1.41192034,2718.5,2717.2,0.002]
[1769794995232,0.91955714,2718.7,2717.2,0.002]
[1769794995427,0.91955714,2718.7,2717.2,0.92206477]
[1769794995627,14.1192034,2718.7,2717.2,0.92206477]
[1769794995813,14.1192034,2718.7,2717.2,0.002]
[1769794996532,14.1192034,2718.7,2717.5,0.002]
[1769794996720,13.19964626,2718.5,2717.5,0.002]
[1769794997631,0.91965862,2718.4,2717.5,0.002]
[1769794997809,14.11930488,2718.4,2717.5,0.002]
[1769794999710,14.11930488,2718.4,2717.2,0.002]
[1769794999904,13.19964626,2718.2,2717.0,0.002]
[1769795001216,0.2335703,2718.1,2717.0,0.002]
[1769795001414,2.01336424,2718.3,2716.8,0.002]
[1769795001415,13.19964626,2718.0,2716.8,0.002]
[1769795001628,13.19964626,2717.6,2716.8,0.002]
[1769795002205,13.19964626,2717.6,2716.6,0.002]
[1769795002412,13.19964626,2717.4,2716.4,0.002]
[1769795003118,13.19964626,2717.2,2715.8,0.92051476]
[1769795003335,13.19964626,2717.0,2715.7,0.92055416]
[1769795003505,13.19964626,2717.0,2715.7,0.92055161]
[1769795003714,0.92016636,2716.9,2715.7,3.6822854]
[1769795003944,1.78004781,2716.8,2715.7,1.3808588]
[1769795004128,14.97969407,2716.8,2715.7,0.92057296]
[1769795005145,14.97969407,2716.8,2715.6,0.92058729]
[1769795005936,0.9202341,2716.7,2715.3,14.82467974]
[1769795007248,2.70025247,2716.8,2715.3,14.82467974]
[1769795007565,0.92020466,2716.8,2715.3,14.82467974]
[1769795008052,16.87995084,2717.2,2715.3,14.82467974]
[1769795008053,14.11974489,2717.1,2715.3,14.82467974]
[1769795008489,14.11974489,2717.1,2715.9,0.002]
[1769795009458,13.19964626,2716.9,2715.6,0.002]
[1769795010178,13.19964626,2716.7,2715.6,0.002]
[1769795010345,13.19964626,2716.5,2715.6,0.002]
[1769795011473,1.41198465,2716.6,2715.6,0.002]
[1769795011677,13.19964626,2716.7,2715.6,0.002]
[1769795011970,14.11984649,2716.8,2715.6,0.002]
[1769795012976,1.41195418,2717.5,2715.6,13.90597117]
[1769795013184,13.19964626,2717.3,2715.6,13.90597117]
[1769795013994,13.19964626,2717.1,2715.6,0.002]
[1769795014175,13.19964626,2717.1,2715.6,13.90597117]
[1769795014358,0.92013249,2717.0,2715.7,0.92057296]
[1769795014888,14.11977875,2717.0,2715.7,0.92057296]
[1769795015088,3.68031858,2717.2,2715.7,14.82454413]
[1769795015089,1.78003087,2716.9,2715.7,14.82454413]
[1769795015289,0.92009976,2717.1,2715.7,14.82454413]
[1769795015597,14.11967717,2717.3,2715.7,14.82454413]
[1769795015919,0.92003091,2717.3,2715.7,14.82454413]
[1769795016073,3.67981557,2717.6,2715.7,14.82454413]
[1769795016263,1.77993912,2717.5,2715.9,13.90397117]
[1769795016585,0.91999705,2717.4,2716.1,13.06106468]
[1769795016818,13.5380863,2717.4,2716.0,0.92047128]
[1769795017575,0.91999705,2717.4,2716.1,12.88393262]
[1769795018380,0.91989549,2717.7,2716.2,13.80433612]
[1769795018580,0.91989549,2717.7,2716.3,14.63252763]
[1769795019294,12.60260664,2718.0,2716.3,14.63252763]
[1769795019464,13.52143444,2717.9,2716.3,14.63252763]
[1769795019799,13.52143444,2717.9,2716.3,1.74859501]
[1769795020099,12.60160664,2717.7,2716.2,0.9204035]
[1769795020392,0.91989549,2717.7,2716.2,13.80433612]
[1769795020959,0.92089549,2717.7,2716.2,13.80433612]
[1769795021487,0.001,2717.7,2716.2,13.80433612]
[1769795021682,0.001,2717.7,2716.4,12.88393262]
[1769795021881,0.001,2717.7,2716.5,14.18256588]
[1769795022072,0.001,2718.0,2716.6,12.88393262]
[1769795022456,0.91952331,2718.8,2716.9,12.88393262]
[1769795022682,13.52112995,2718.8,2716.9,12.88393262]
[1769795024311,13.52112995,2718.8,2717.1,12.88393262]
[1769795024490,15.11766844,2718.8,2717.4,0.91999705]
[1769795028467,15.11766844,2718.8,2717.4,13.80392967]
[1769795028892,13.52105261,2719.1,2717.6,12.88393262]
[1769795029093,0.91940828,2719.2,2717.6,12.88393262]
[1769795029471,13.52101492,2719.2,2717.6,12.88393262]
[1769795029669,12.60160664,2719.5,2717.6,12.88393262]
[1769795029900,14.22947242,2719.4,2717.7,1.28839326]
[1769795030216,12.60160664,2719.2,2717.4,0.91999705]
[1769795030901,0.91942186,2719.1,2717.3,3.67998822]
[1769795031100,12.60160664,2719.0,2717.3,3.67998822]
[1769795031402,12.60160664,2718.8,2717.2,2.03434119]
[1769795031619,12.60160664,2718.8,2717.1,0.92007304]
[1769795031775,12.60160664,2718.8,2717.2,13.80399372]
[1769795032576,12.60160664,2718.8,2717.2,0.9200611]
[1769795032991,12.60160664,2718.6,2717.0,0.92013249]
[1769795033594,12.60160664,2718.6,2717.0,13.80406511]
[1769795033906,1.35211638,2718.5,2717.1,1.74845951]
[1769795035293,0.91965862,2718.4,2717.2,0.92006477]
[1769795035494,2.27176064,2718.5,2717.2,13.80399739]
[1769795035702,0.91960253,2718.6,2717.2,13.80399739]
[1769795037522,13.52212995,2718.8,2717.2,0.92006477]
[1769795039534,13.52212995,2718.8,2717.1,3.6803769]
[1769795039904,13.52212995,2718.8,2717.2,12.88393262]
[1769795040330,13.52212995,2718.8,2717.0,3.68025909]
[1769795040536,12.60160664,2718.6,2717.1,1.74843242]
[1769795040735,12.60160664,2718.6,2717.1,14.63236504]
[1769795041135,1.72001271,2718.7,2717.1,14.63236504]
[1769795041436,0.91959096,2718.6,2717.3,12.88393262]
[1769795042045,0.001,2718.8,2717.5,12.88393262]
[1769795042212,0.001,2718.8,2717.7,12.88393262]
[1769795043109,0.001,2718.8,2717.6,1.21675278]
[1769795043110,13.52213462,2718.8,2717.6,1.21675278]
[1769795043314,13.52213462,2718.8,2717.3,12.88393262]
[1769795043534,13.52213462,2718.8,2717.4,0.91999705]
[1769795043940,13.52213462,2718.8,2717.4,13.80392967]
[1769795045148,0.92052798,2718.8,2717.4,13.80392967]
[1769795045325,0.001,2718.8,2717.6,12.88393262]
[1769795045648,0.001,2718.8,2717.8,0.91986165]
[1769795046139,12.60260664,2718.8,2717.8,0.91986165]
[1769795046333,12.60260664,2718.8,2717.7,0.91987514]
[1769795047743,13.73652543,2718.6,2717.5,0.002]
[1769795047954,13.73652543,2718.4,2717.3,0.002]
[1769795049758,13.73652543,2718.2,2717.3,0.002]
[1769795052027,14.65628555,2718.1,2717.3,0.002]
[1769795053725,14.65628555,2718.1,2716.5,17.07268198]
[1769795054051,15.57005803,2718.0,2716.6,2.07539082]
[1769795054463,0.9198278,2717.9,2716.7,0.9202341]
[1769795054945,2.75334702,2718.0,2716.8,13.39155322]
[1769795055261,0.91981442,2718.0,2716.8,13.39155322]
[1769795055765,0.91975146,2718.2,2716.8,13.39155322]
[1769795057162,17.41491515,2718.6,2717.0,13.39155322]
[1769795057163,14.65615022,2718.5,2717.0,13.39155322]
[1769795057866,14.65615022,2718.5,2716.9,0.92016636]
[1769795058029,14.65615022,2718.5,2717.5,0.002]
[1769795058227,13.73652543,2718.3,2716.9,0.92016636]
[1769795058448,13.73652543,2718.3,2717.3,0.002]
[1769795059758,13.73652543,2718.1,2716.8,3.68066546]
[1769795060863,0.91972628,2718.2,2716.9,13.39155322]
[1769795061995,13.73652543,2718.5,2717.1,13.39155322]
[1769795062294,1.46571164,2718.4,2717.2,14.82272179]
[1769795062460,0.001,2718.6,2717.4,13.39155322]
[1769795062796,0.001,2718.6,2717.3,0.1024]
[1769795062970,0.001,2718.6,2717.4,13.39155322]
[1769795063175,0.001,2718.6,2717.5,14.74094854]
[1769795064192,0.001,2718.6,2717.6,0.91992934]
[1769795065400,0.001,2718.6,2717.6,14.31148256]
[1769795065595,0.001,2718.8,2717.7,13.39155322]
[1769795066180,0.001,2718.8,2717.8,14.31141487]
[1769795066368,13.73652543,2720.0,2717.9,15.19063937]
[1769795066699,14.65672752,2719.8,2717.9,15.94281889]
[1769795066901,14.65672752,2719.8,2718.1,13.39155322]
[1769795067867,0.001,2719.8,2718.1,13.39155322]
[1769795068068,0.001,2719.8,2718.3,13.39155322]
[1769795068318,0.001,2719.8,2718.5,13.39155322]
[1769795068722,3.67566352,2720.6,2719.0,13.39155322]
[1769795069027,14.65547415,2720.5,2719.0,13.39155322]
[1769795069729,13.73652543,2720.5,2719.0,13.39155322]
[1769795070294,0.91891879,2720.6,2719.1,14.31097508]
[1769795070497,14.46982097,2720.6,2719.2,14.74094854]
[1769795070729,14.46982097,2720.6,2719.2,1.34939532]
[1769795070901,14.46982097,2720.6,2719.0,0.91944017]
[1769795071998,14.46982097,2720.6,2719.0,14.31099339]
[1769795072611,14.46982097,2720.6,2719.0,14.30939339]
[1769795073224,14.46982097,2720.6,2719.0,0.91784017]
[1769795073424,13.73652543,2720.4,2719.0,0.91784017]
[1769795074333,13.73652543,2720.4,2718.8,14.31107653]
[1769795074334,14.65554171,2720.3,2718.8,14.31107653]
[1769795078823,3.0,2720.0,2718.8,14.31107653]
[1769795080841,3.9191226,2720.0,2718.8,14.31107653]
[1769795082442,3.0,2720.0,2718.8,14.31107653]
[1769795082645,3.0,2720.0,2719.0,0.002]
[1769795082848,3.0,2720.0,2719.0,0.92145568]
[1769795083815,3.0,2720.0,2719.0,14.63722107]
[1769795084016,17.06356556,2720.0,2719.0,0.92145568]
[1769795084553,13.14444235,2719.9,2719.0,0.002]
[1769795084867,14.85089891,2719.9,2719.0,0.002]
[1769795085220,1.70645656,2719.9,2719.0,0.002]
[1769795085522,3.91913829,2720.0,2719.0,0.002]
[1769795085738,3.0,2720.0,2719.0,0.002]
[1769795086245,3.0,2720.0,2719.0,13.71776539]
[1769795087328,3.0,2720.0,2719.1,0.91942186]
[1769795087528,3.0,2720.0,2719.1,14.63518725]
[1769795087847,3.0,2720.0,2719.2,15.54725286]
[1769795089548,3.0,2720.0,2719.3,0.91935424]
[1769795089747,3.0,2720.0,2719.3,14.63511963]
[1769795090151,1e-08,2720.0,2719.3,14.63511963]
[1769795092156,14.06327634,2720.9,2719.5,13.71576539]
[1769795092360,15.08837634,2720.9,2719.5,13.71576539]
[1769795093877,1.0251,2720.9,2719.6,14.63501822]
[1769795094031,0.001,2721.5,2719.8,13.71576539]
[1769795094368,10.251,2722.2,2720.6,13.71576539]
[1769795094369,13.14544235,2722.2,2720.6,13.71576539]
[1769795094532,14.45998659,2722.2,2720.8,13.81816539]
[1769795094725,1.31554424,2722.2,2720.8,13.81816539]